[Event "*** SCC Grand Prix: Titled Tuesday Blitz"]
[Site "Chess.com"]
[Date "2020.08.25"]
[Round "3"]
[White "Blagorod"]
[Black "Chessdemon2019"]
[Result "0-1"]
[WhiteElo "2137"]
[BlackElo "2356"]
[TimeControl "180+1"]
[EndTime "10:30:04 PDT"]
[Termination "Chessdemon2019 won by resignation"]

1. e4 {[%clk 0:03:00.9]} 1... c5 {[%clk 0:02:58.9]} 2. Nc3 {[%clk 0:03:01.1]}
2... Nc6 {[%clk 0:02:58.7]} 3. g3 {[%clk 0:03:01.7]} 3... g6 {[%clk 0:02:58.9]}
4. Bg2 {[%clk 0:03:02.2]} 4... Bg7 {[%clk 0:02:59.7]} 5. d3 {[%clk 0:03:02.6]}
5... d6 {[%clk 0:02:59.5]} 6. f4 {[%clk 0:02:59.5]} 6... e5 {[%clk 0:02:56.3]}
7. Nh3 {[%clk 0:02:59.4]} 7... Nge7 {[%clk 0:02:55.3]} 8. O-O {[%clk 0:02:59.8]}
8... O-O {[%clk 0:02:54.4]} 9. f5 {[%clk 0:03:00.3]} 9... gxf5 {[%clk
0:02:53.8]} 10. exf5 {[%clk 0:03:00.1]} 10... Bxf5 {[%clk 0:02:52.6]} 11. Rxf5
{[%clk 0:02:55.9]} 11... Nxf5 {[%clk 0:02:52.4]} 12. Qh5 {[%clk 0:02:54.2]}
12... Ncd4 {[%clk 0:02:45.2]} 13. Be4 {[%clk 0:02:49.3]} 13... Qf6 {[%clk
0:02:28.2]} 14. Nd5 {[%clk 0:02:49]} 14... Qg6 {[%clk 0:02:18.1]} 15. Qd1 {[%clk
0:02:47.4]} 15... Rfe8 {[%clk 0:02:12.8]} 16. c3 {[%clk 0:02:37.7]} 16... Ne6
{[%clk 0:02:00]} 17. Qf3 {[%clk 0:02:24.1]} 17... Nh4 {[%clk 0:01:54.3]} 18. Qf2
{[%clk 0:01:44.7]} 18... f5 {[%clk 0:01:48]} 19. Bh1 {[%clk 0:01:39.7]} 19...
Qg4 {[%clk 0:01:43.7]} 20. Ng5 {[%clk 0:01:04.7]} 20... Nxg5 {[%clk 0:01:37.4]}
21. Bxg5 {[%clk 0:01:04.7]} 21... Qxg5 {[%clk 0:01:33.5]} 22. Nc7 {[%clk
0:01:05.1]} 22... Rac8 {[%clk 0:01:31.4]} 23. Nxe8 {[%clk 0:01:04.2]} 23... Rxe8
{[%clk 0:01:32.3]} 24. Bxb7 {[%clk 0:01:02.5]} 24... f4 {[%clk 0:01:27.9]} 25.
Bd5+ {[%clk 0:01:00.3]} 25... Kh8 {[%clk 0:01:27.6]} 26. Kh1 {[%clk 0:00:56.9]}
26... fxg3 {[%clk 0:01:27.2]} 27. hxg3 {[%clk 0:00:56.8]} 27... Rf8 {[%clk
0:01:26.6]} 28. gxh4 {[%clk 0:00:55.2]} 28... Qg4 {[%clk 0:01:13.8]} 29. Rg1
{[%clk 0:00:39.8]} 29... Qh3+ {[%clk 0:01:07.3]} 30. Qh2 {[%clk 0:00:39.1]}
30... Qxd3 {[%clk 0:01:07.6]} 31. c4 {[%clk 0:00:30.3]} 31... e4 {[%clk
0:01:02.3]} 32. Qg2 {[%clk 0:00:27.3]} 32... Qf3 {[%clk 0:00:48.6]} 33. Bxe4
{[%clk 0:00:26]} 33... Qxg2+ {[%clk 0:00:47.2]} 34. Rxg2 {[%clk 0:00:25.4]}
34... Rf4 {[%clk 0:00:46.9]} 35. Bd5 {[%clk 0:00:23.9]} 35... Rxh4+ {[%clk
0:00:47.1]} 36. Kg1 {[%clk 0:00:22.3]} 36... Rf4 {[%clk 0:00:41.4]} 37. Kh2
{[%clk 0:00:20.5]} 37... h5 {[%clk 0:00:40.8]} 38. Kh3 {[%clk 0:00:19.8]} 38...
Kh7 {[%clk 0:00:37.9]} 39. Kg3 {[%clk 0:00:18.4]} 39... Be5 {[%clk 0:00:37.8]}
40. Kh3 {[%clk 0:00:18.9]} 40... Kh6 {[%clk 0:00:37.4]} 41. a4 {[%clk
0:00:17.6]} 41... Rd4 {[%clk 0:00:29.7]} 42. a5 {[%clk 0:00:16.7]} 42... Rd3+
{[%clk 0:00:30]} 43. Kh4 {[%clk 0:00:17]} 43... Bf6+ {[%clk 0:00:30.4]} 0-1

[Event "*** SCC Grand Prix: Titled Tuesday Blitz"]
[Site "Chess.com"]
[Date "2020.08.25"]
[Round "3"]
[White "Eliwood44"]
[Black "BlackBoarder"]
[Result "1-0"]
[WhiteElo "2380"]
[BlackElo "2543"]
[TimeControl "180+1"]
[EndTime "10:30:05 PDT"]
[Termination "Eliwood44 won on time"]

1. d4 {[%clk 0:03:00.9]} 1... e6 {[%clk 0:02:56.6]} 2. Nf3 {[%clk 0:02:57.8]}
2... Nf6 {[%clk 0:02:56.8]} 3. e3 {[%clk 0:02:57.9]} 3... c5 {[%clk 0:02:56.7]}
4. Bd3 {[%clk 0:02:57.6]} 4... Nc6 {[%clk 0:02:56.6]} 5. O-O {[%clk 0:02:57.1]}
5... Be7 {[%clk 0:02:55.5]} 6. c4 {[%clk 0:02:56.1]} 6... cxd4 {[%clk
0:02:50.2]} 7. exd4 {[%clk 0:02:56]} 7... O-O {[%clk 0:02:46.1]} 8. d5 {[%clk
0:02:54.1]} 8... exd5 {[%clk 0:02:36.2]} 9. cxd5 {[%clk 0:02:53.8]} 9... Nxd5
{[%clk 0:02:37.1]} 10. Bxh7+ {[%clk 0:02:50.3]} 10... Kxh7 {[%clk 0:02:38]} 11.
Qxd5 {[%clk 0:02:50.6]} 11... d6 {[%clk 0:02:27]} 12. Qh5+ {[%clk 0:02:44.5]}
12... Kg8 {[%clk 0:02:26.3]} 13. Nc3 {[%clk 0:02:42.4]} 13... Be6 {[%clk
0:02:01.3]} 14. Bg5 {[%clk 0:02:34.5]} 14... Qa5 {[%clk 0:01:32.9]} 15. Qh4
{[%clk 0:02:19]} 15... f6 {[%clk 0:01:24.8]} 16. Be3 {[%clk 0:02:00.4]} 16...
Rae8 {[%clk 0:01:15.3]} 17. Rfe1 {[%clk 0:01:55.4]} 17... Bf7 {[%clk 0:01:12.4]}
18. Rad1 {[%clk 0:01:54]} 18... Ne5 {[%clk 0:01:04.4]} 19. Nd4 {[%clk 0:01:49]}
19... Nc4 {[%clk 0:01:00.1]} 20. Bc1 {[%clk 0:01:46.6]} 20... Bd8 {[%clk
0:00:51.6]} 21. Qg3 {[%clk 0:01:29.7]} 21... Qh5 {[%clk 0:00:32.9]} 22. b3
{[%clk 0:01:25.8]} 22... Ne5 {[%clk 0:00:24.8]} 23. Ndb5 {[%clk 0:01:22.6]}
23... d5 {[%clk 0:00:11.5]} 24. Nd6 {[%clk 0:01:19]} 24... Re6 {[%clk
0:00:11.3]} 25. Nxf7 {[%clk 0:01:18.1]} 25... Rxf7 {[%clk 0:00:07.6]} 26. Nxd5
{[%clk 0:01:13.8]} 26... Ba5 {[%clk 0:00:07.6]} 27. b4 {[%clk 0:01:12.5]} 27...
Bb6 {[%clk 0:00:04.9]} 28. Nxb6 {[%clk 0:01:09.9]} 28... Rxb6 {[%clk 0:00:04.8]}
29. Rd8+ {[%clk 0:01:02.1]} 29... Kh7 {[%clk 0:00:04.7]} 30. Rd4 {[%clk
0:01:01.9]} 30... g5 {[%clk 0:00:04.1]} 31. f4 {[%clk 0:00:59]} 31... gxf4
{[%clk 0:00:01.9]} 32. Bxf4 {[%clk 0:00:58.7]} 32... Ng6 {[%clk 0:00:02.1]} 33.
Bc7 {[%clk 0:00:57.7]} 33... Rc6 {[%clk 0:00:01.8]} 34. Bd8 {[%clk 0:00:47.2]}
34... f5 {[%clk 0:00:02.2]} 35. h3 {[%clk 0:00:40.5]} 35... f4 {[%clk
0:00:02.4]} 36. Qd3 {[%clk 0:00:37.3]} 36... f3 {[%clk 0:00:02.2]} 37. Rf1
{[%clk 0:00:34.6]} 37... Re6 {[%clk 0:00:01.3]} 38. Rh4 {[%clk 0:00:31.6]} 1-0

[Event "*** SCC Grand Prix: Titled Tuesday Blitz"]
[Site "Chess.com"]
[Date "2020.08.25"]
[Round "3"]
[White "maurito96"]
[Black "ChelsieMonica"]
[Result "0-1"]
[WhiteElo "2159"]
[BlackElo "2399"]
[TimeControl "180+1"]
[EndTime "10:30:05 PDT"]
[Termination "ChelsieMonica won on time"]

1. e4 {[%clk 0:03:00.9]} 1... e5 {[%clk 0:02:33.9]} 2. f4 {[%clk 0:02:57.6]}
2... d5 {[%clk 0:02:33.8]} 3. exd5 {[%clk 0:02:57]} 3... e4 {[%clk 0:02:33.2]}
4. d3 {[%clk 0:02:57.3]} 4... Qxd5 {[%clk 0:02:32.4]} 5. Nc3 {[%clk 0:02:56.1]}
5... Bb4 {[%clk 0:02:32.6]} 6. Bd2 {[%clk 0:02:55.7]} 6... Bxc3 {[%clk
0:02:32.9]} 7. Bxc3 {[%clk 0:02:56]} 7... Nf6 {[%clk 0:02:33.1]} 8. dxe4 {[%clk
0:02:48.8]} 8... Qxe4+ {[%clk 0:02:32.6]} 9. Qe2 {[%clk 0:02:48.4]} 9... Qxe2+
{[%clk 0:02:32.7]} 10. Bxe2 {[%clk 0:02:43.3]} 10... O-O {[%clk 0:02:32.6]} 11.
Bf3 {[%clk 0:02:33]} 11... Re8+ {[%clk 0:02:30.3]} 12. Kf2 {[%clk 0:02:24]}
12... Ne4+ {[%clk 0:02:21.9]} 13. Bxe4 {[%clk 0:02:23.9]} 13... Rxe4 {[%clk
0:02:22.8]} 14. Rd1 {[%clk 0:02:08.1]} 14... Nc6 {[%clk 0:02:21.5]} 15. Kf3
{[%clk 0:01:57.8]} 15... Re8 {[%clk 0:02:17.8]} 16. Nh3 {[%clk 0:01:34.3]} 16...
Bxh3 {[%clk 0:02:13.9]} 17. gxh3 {[%clk 0:01:33.8]} 17... Rad8 {[%clk
0:02:14.8]} 18. h4 {[%clk 0:01:25.3]} 18... f6 {[%clk 0:02:13]} 19. h5 {[%clk
0:01:24.6]} 19... Kf7 {[%clk 0:02:12.8]} 20. Rhe1 {[%clk 0:01:19.3]} 20... b5
{[%clk 0:02:04.5]} 21. a3 {[%clk 0:01:16.8]} 21... a6 {[%clk 0:02:03.9]} 22.
Rxe8 {[%clk 0:01:10.4]} 22... Rxe8 {[%clk 0:02:01.2]} 23. Rd7+ {[%clk
0:01:09.2]} 23... Re7 {[%clk 0:02:01.6]} 24. Rxe7+ {[%clk 0:01:09.1]} 24... Nxe7
{[%clk 0:02:02.5]} 25. Ke4 {[%clk 0:01:08.3]} 25... Ke6 {[%clk 0:02:02.5]} 26.
Kd4 {[%clk 0:00:59]} 26... Nf5+ {[%clk 0:01:50]} 27. Kc5 {[%clk 0:00:57.8]}
27... Kd7 {[%clk 0:01:50.5]} 28. b3 {[%clk 0:00:43.4]} 28... h6 {[%clk
0:01:43.2]} 29. Bd2 {[%clk 0:00:41.2]} 29... Nh4 {[%clk 0:01:34.5]} 30. a4
{[%clk 0:00:37.9]} 30... bxa4 {[%clk 0:01:32]} 31. bxa4 {[%clk 0:00:37]} 31...
Nf3 {[%clk 0:01:32.9]} 32. Be3 {[%clk 0:00:20.6]} 32... Nxh2 {[%clk 0:01:32.3]}
33. Kb4 {[%clk 0:00:20.4]} 33... Ng4 {[%clk 0:01:28.1]} 34. Bg1 {[%clk
0:00:19.5]} 34... Kc6 {[%clk 0:01:28.2]} 35. Ka5 {[%clk 0:00:19.2]} 35... Kb7
{[%clk 0:01:28.3]} 36. c4 {[%clk 0:00:18.2]} 36... c6 {[%clk 0:01:22.6]} 37. Kb4
{[%clk 0:00:15.8]} 37... Kc8 {[%clk 0:01:14]} 38. Kc5 {[%clk 0:00:14.9]} 38...
Kc7 {[%clk 0:01:13.8]} 39. Bd4 {[%clk 0:00:13.1]} 39... Nh2 {[%clk 0:01:12]} 40.
Bc3 {[%clk 0:00:12.4]} 40... Nf1 {[%clk 0:01:07.9]} 41. Ba5+ {[%clk 0:00:12]}
41... Kd7 {[%clk 0:01:06.6]} 42. Kb6 {[%clk 0:00:12.1]} 42... Ne3 {[%clk
0:01:04.3]} 43. c5 {[%clk 0:00:11.6]} 43... Nd5+ {[%clk 0:01:03.7]} 44. Kxa6
{[%clk 0:00:11.1]} 44... Nxf4 {[%clk 0:01:03.4]} 45. Kb7 {[%clk 0:00:10.6]}
45... Nd3 {[%clk 0:01:03.3]} 46. Bb6 {[%clk 0:00:09.4]} 46... f5 {[%clk
0:01:03.6]} 47. a5 {[%clk 0:00:07.1]} 47... Nb4 {[%clk 0:01:04.1]} 48. a6 {[%clk
0:00:05.8]} 48... Nxa6 {[%clk 0:01:04.5]} 49. Kxa6 {[%clk 0:00:05.4]} 49... Ke6
{[%clk 0:01:02.4]} 50. Kb7 {[%clk 0:00:05.3]} 50... Kd5 {[%clk 0:01:03.3]} 51.
Kc7 {[%clk 0:00:04.5]} 51... f4 {[%clk 0:01:03.5]} 0-1

[Event "*** SCC Grand Prix: Titled Tuesday Blitz"]
[Site "Chess.com"]
[Date "2020.08.25"]
[Round "3"]
[White "Dedic8"]
[Black "lucachess49"]
[Result "1-0"]
[WhiteElo "2747"]
[BlackElo "2481"]
[TimeControl "180+1"]
[EndTime "10:30:08 PDT"]
[Termination "Dedic8 won by resignation"]

1. e4 {[%clk 0:03:00.9]} 1... e5 {[%clk 0:02:55.3]} 2. Nf3 {[%clk 0:03:00.8]}
2... Nc6 {[%clk 0:02:51.3]} 3. Bb5 {[%clk 0:03:00.9]} 3... a6 {[%clk 0:02:50.7]}
4. Ba4 {[%clk 0:03:01.2]} 4... Nf6 {[%clk 0:02:50.2]} 5. O-O {[%clk 0:03:01.3]}
5... Be7 {[%clk 0:02:50.8]} 6. Re1 {[%clk 0:03:01.6]} 6... b5 {[%clk 0:02:50.9]}
7. Bb3 {[%clk 0:03:02.2]} 7... d6 {[%clk 0:02:51.8]} 8. c3 {[%clk 0:03:01.2]}
8... O-O {[%clk 0:02:52.4]} 9. h3 {[%clk 0:03:01.8]} 9... Na5 {[%clk 0:02:51.2]}
10. Bc2 {[%clk 0:03:01.9]} 10... c5 {[%clk 0:02:51.9]} 11. d4 {[%clk 0:03:02.6]}
11... Qc7 {[%clk 0:02:52.5]} 12. Nbd2 {[%clk 0:03:02]} 12... Nc6 {[%clk
0:02:42.7]} 13. d5 {[%clk 0:03:00.4]} 13... Nd8 {[%clk 0:02:42.8]} 14. b3 {[%clk
0:02:59]} 14... Bd7 {[%clk 0:02:39.1]} 15. Nf1 {[%clk 0:02:58.5]} 15... Ne8
{[%clk 0:02:35]} 16. Ng3 {[%clk 0:02:57.8]} 16... g6 {[%clk 0:02:35]} 17. Nh2
{[%clk 0:02:57.3]} 17... Ng7 {[%clk 0:02:35.4]} 18. Ng4 {[%clk 0:02:56.8]} 18...
h5 {[%clk 0:02:30.6]} 19. Nh6+ {[%clk 0:02:34.5]} 19... Kh7 {[%clk 0:02:30.1]}
20. Qf3 {[%clk 0:02:34.5]} 20... f6 {[%clk 0:02:18.7]} 21. Bd2 {[%clk
0:02:27.8]} 21... Nf7 {[%clk 0:01:39.5]} 22. Nxf7 {[%clk 0:02:27.3]} 22... Rxf7
{[%clk 0:01:40.4]} 23. Qe3 {[%clk 0:02:28]} 23... g5 {[%clk 0:01:31.2]} 24. Bd1
{[%clk 0:02:13.9]} 24... Kg6 {[%clk 0:01:15.9]} 25. h4 {[%clk 0:01:43.1]} 25...
Rh8 {[%clk 0:01:12.8]} 26. Nf1 {[%clk 0:01:42.8]} 26... f5 {[%clk 0:00:54.6]}
27. exf5+ {[%clk 0:01:42.5]} 27... Nxf5 {[%clk 0:00:54.2]} 28. Bc2 {[%clk
0:01:41.1]} 28... Kg7 {[%clk 0:00:54.8]} 29. Bxf5 {[%clk 0:01:36]} 29... Bxf5
{[%clk 0:00:55.7]} 30. hxg5 {[%clk 0:01:33.9]} 30... h4 {[%clk 0:00:45.2]} 31.
Nh2 {[%clk 0:01:21.2]} 31... Rh5 {[%clk 0:00:34.6]} 32. Qe2 {[%clk 0:01:03.1]}
32... Bg6 {[%clk 0:00:29.1]} 33. f4 {[%clk 0:00:47.2]} 33... exf4 {[%clk
0:00:27.6]} 34. Nf3 {[%clk 0:00:47]} 34... h3 {[%clk 0:00:18.3]} 35. c4 {[%clk
0:00:45.5]} 35... hxg2 {[%clk 0:00:17.9]} 36. Qxg2 {[%clk 0:00:42.9]} 36... bxc4
{[%clk 0:00:15.6]} 37. bxc4 {[%clk 0:00:40.8]} 37... Qd7 {[%clk 0:00:15.4]} 38.
Re6 {[%clk 0:00:39.8]} 38... Qa4 {[%clk 0:00:12.7]} 39. Bc3+ {[%clk 0:00:35.9]}
39... Kg8 {[%clk 0:00:10.5]} 40. Qe2 {[%clk 0:00:36]} 40... Bf8 {[%clk
0:00:09.2]} 41. Rxg6+ {[%clk 0:00:35.4]} 1-0

[Event "*** SCC Grand Prix: Titled Tuesday Blitz"]
[Site "Chess.com"]
[Date "2020.08.25"]
[Round "3"]
[White "giantslayer83"]
[Black "Slovak_fighter2000"]
[Result "1-0"]
[WhiteElo "2717"]
[BlackElo "2417"]
[TimeControl "180+1"]
[EndTime "10:30:11 PDT"]
[Termination "giantslayer83 won by checkmate"]

1. d4 {[%clk 0:03:00.9]} 1... Nf6 {[%clk 0:02:59.4]} 2. Bg5 {[%clk 0:03:00.1]}
2... d5 {[%clk 0:02:58]} 3. e3 {[%clk 0:02:58.2]} 3... c5 {[%clk 0:02:56.2]} 4.
Nd2 {[%clk 0:02:53.1]} 4... Nc6 {[%clk 0:02:51.5]} 5. c3 {[%clk 0:02:52.3]} 5...
cxd4 {[%clk 0:02:51]} 6. exd4 {[%clk 0:02:52.2]} 6... e6 {[%clk 0:02:42.3]} 7.
Ngf3 {[%clk 0:02:50.1]} 7... Bd6 {[%clk 0:02:41.9]} 8. Bd3 {[%clk 0:02:48.3]}
8... Qc7 {[%clk 0:02:37.9]} 9. O-O {[%clk 0:02:44.1]} 9... h6 {[%clk 0:02:35.1]}
10. Bxf6 {[%clk 0:02:38.5]} 10... gxf6 {[%clk 0:02:36]} 11. Qe2 {[%clk
0:02:36.7]} 11... Bd7 {[%clk 0:02:32.9]} 12. b4 {[%clk 0:02:35.1]} 12... O-O-O
{[%clk 0:02:28.2]} 13. b5 {[%clk 0:02:34.2]} 13... Na5 {[%clk 0:02:23.8]} 14. c4
{[%clk 0:02:27.8]} 14... dxc4 {[%clk 0:02:22.8]} 15. Nxc4 {[%clk 0:02:28.7]}
15... Nxc4 {[%clk 0:02:20.7]} 16. Bxc4 {[%clk 0:02:29.6]} 16... Kb8 {[%clk
0:02:17.7]} 17. a4 {[%clk 0:02:28.4]} 17... Qa5 {[%clk 0:02:14.9]} 18. Bd3
{[%clk 0:02:17.8]} 18... Rhg8 {[%clk 0:02:01.2]} 19. Nd2 {[%clk 0:02:17.5]}
19... Qc3 {[%clk 0:01:51.5]} 20. Nf3 {[%clk 0:01:54.8]} 20... Qa5 {[%clk
0:01:50.2]} 21. Be4 {[%clk 0:01:47.7]} 21... Bc8 {[%clk 0:01:41.8]} 22. Rfc1
{[%clk 0:01:45.4]} 22... e5 {[%clk 0:01:35.3]} 23. dxe5 {[%clk 0:01:43.1]} 23...
fxe5 {[%clk 0:01:36.2]} 24. Bd5 {[%clk 0:01:27.8]} 24... Rg7 {[%clk 0:01:21.2]}
25. Nxe5 {[%clk 0:01:21.8]} 25... Bc7 {[%clk 0:01:01.2]} 26. Bf3 {[%clk
0:01:06.1]} 26... Qb6 {[%clk 0:00:54.8]} 27. a5 {[%clk 0:00:58.8]} 27... Qe6
{[%clk 0:00:51.6]} 28. Nc4 {[%clk 0:00:34.5]} 28... Qxe2 {[%clk 0:00:39.7]} 29.
Bxe2 {[%clk 0:00:35.4]} 29... Bf4 {[%clk 0:00:36]} 30. Rc3 {[%clk 0:00:31.8]}
30... Be6 {[%clk 0:00:33.6]} 31. b6 {[%clk 0:00:27.5]} 31... a6 {[%clk
0:00:33.2]} 32. g3 {[%clk 0:00:25.3]} 32... Bg5 {[%clk 0:00:31.4]} 33. Rd1
{[%clk 0:00:19]} 33... Rgg8 {[%clk 0:00:30.8]} 34. Nd6 {[%clk 0:00:16.9]} 34...
Be7 {[%clk 0:00:26.3]} 35. Nxb7 {[%clk 0:00:16.6]} 35... Rxd1+ {[%clk
0:00:22.3]} 36. Bxd1 {[%clk 0:00:17.5]} 36... Bb4 {[%clk 0:00:20.8]} 37. Rc7
{[%clk 0:00:15.5]} 37... Bd5 {[%clk 0:00:17.6]} 38. Nc5 {[%clk 0:00:15.4]} 38...
Bxa5 {[%clk 0:00:17.7]} 39. Nxa6+ {[%clk 0:00:15.3]} 39... Ka8 {[%clk
0:00:17.9]} 40. Ra7# {[%clk 0:00:16.2]} 1-0

[Event "*** SCC Grand Prix: Titled Tuesday Blitz"]
[Site "Chess.com"]
[Date "2020.08.25"]
[Round "3"]
[White "boasovietica"]
[Black "nocnypako"]
[Result "0-1"]
[WhiteElo "2394"]
[BlackElo "2605"]
[TimeControl "180+1"]
[EndTime "10:30:12 PDT"]
[Termination "nocnypako won by resignation"]

1. e4 {[%clk 0:03:00.9]} 1... e6 {[%clk 0:02:57.3]} 2. d4 {[%clk 0:02:59.7]}
2... d5 {[%clk 0:02:57.8]} 3. Nd2 {[%clk 0:02:59.6]} 3... c5 {[%clk 0:02:56.7]}
4. exd5 {[%clk 0:02:58.7]} 4... Qxd5 {[%clk 0:02:57.6]} 5. Ngf3 {[%clk
0:02:58.4]} 5... cxd4 {[%clk 0:02:57.6]} 6. Bc4 {[%clk 0:02:58.5]} 6... Qd6
{[%clk 0:02:58.1]} 7. O-O {[%clk 0:02:57.8]} 7... Nf6 {[%clk 0:02:58.7]} 8. Nb3
{[%clk 0:02:57.9]} 8... a6 {[%clk 0:02:59.1]} 9. Nbxd4 {[%clk 0:02:57]} 9... Nc6
{[%clk 0:02:57.8]} 10. Re1 {[%clk 0:02:52.5]} 10... Nxd4 {[%clk 0:02:56.9]} 11.
Nxd4 {[%clk 0:02:50.9]} 11... Qc7 {[%clk 0:02:55.5]} 12. Be2 {[%clk 0:02:44.2]}
12... Bd7 {[%clk 0:02:52]} 13. Bf3 {[%clk 0:02:42.6]} 13... O-O-O {[%clk
0:02:51.7]} 14. Qe2 {[%clk 0:02:35.2]} 14... e5 {[%clk 0:02:36]} 15. Nb3 {[%clk
0:02:08.5]} 15... e4 {[%clk 0:02:24.2]} 16. Bxe4 {[%clk 0:01:40]} 16... Re8
{[%clk 0:02:23]} 17. f3 {[%clk 0:01:26.2]} 17... Bd6 {[%clk 0:02:14.2]} 18. g3
{[%clk 0:00:41.6]} 18... Nxe4 {[%clk 0:02:11.6]} 19. fxe4 {[%clk 0:00:40.7]}
19... h5 {[%clk 0:02:07.3]} 20. Qf2 {[%clk 0:00:27.3]} 20... h4 {[%clk
0:01:55.3]} 21. Bf4 {[%clk 0:00:27.7]} 21... hxg3 {[%clk 0:01:55.3]} 22. Bxg3
{[%clk 0:00:21.7]} 22... Rh3 {[%clk 0:01:49.1]} 23. Kg2 {[%clk 0:00:10.7]} 23...
Bxg3 {[%clk 0:01:42.5]} 24. hxg3 {[%clk 0:00:10.1]} 24... Reh8 {[%clk
0:01:41.2]} 25. Rh1 {[%clk 0:00:10]} 25... Rxh1 {[%clk 0:01:31.1]} 26. Rxh1
{[%clk 0:00:09.5]} 26... Rxh1 {[%clk 0:01:31.6]} 27. Kxh1 {[%clk 0:00:09.2]}
27... Bc6 {[%clk 0:01:32.3]} 28. Kg1 {[%clk 0:00:04.2]} 28... Bxe4 {[%clk
0:01:29.8]} 29. Qc5 {[%clk 0:00:03.5]} 29... Qxc5+ {[%clk 0:01:24.2]} 30. Nxc5
{[%clk 0:00:04.4]} 30... Bxc2 {[%clk 0:01:24.6]} 31. b3 {[%clk 0:00:02.8]} 31...
Bb1 {[%clk 0:01:20.1]} 32. a3 {[%clk 0:00:02.5]} 32... Kc7 {[%clk 0:01:20.6]}
33. Kf2 {[%clk 0:00:02.2]} 33... Kc6 {[%clk 0:01:14.7]} 34. b4 {[%clk 0:00:02]}
34... Bc2 {[%clk 0:01:12.5]} 35. Ke3 {[%clk 0:00:02.4]} 35... a5 {[%clk
0:01:05.1]} 36. Kd4 {[%clk 0:00:02.4]} 36... axb4 {[%clk 0:01:01.8]} 37. axb4
{[%clk 0:00:03.3]} 37... b6 {[%clk 0:01:01.5]} 38. Na6 {[%clk 0:00:03.7]} 38...
Kb7 {[%clk 0:00:58.1]} 39. b5 {[%clk 0:00:03.9]} 39... Bd1 {[%clk 0:00:58]} 40.
Nb4 {[%clk 0:00:03.5]} 40... Be2 {[%clk 0:00:57.4]} 41. Nc6 {[%clk 0:00:04.1]}
41... f6 {[%clk 0:00:54.8]} 42. Nd8+ {[%clk 0:00:03.9]} 42... Kc8 {[%clk
0:00:55]} 43. Ne6 {[%clk 0:00:04.6]} 43... g5 {[%clk 0:00:53.4]} 44. Ng7 {[%clk
0:00:03.7]} 44... Kd8 {[%clk 0:00:51.3]} 45. Nf5 {[%clk 0:00:02.9]} 45... Bxb5
{[%clk 0:00:50.8]} 46. Kd5 {[%clk 0:00:03.1]} 46... Kd7 {[%clk 0:00:50.8]} 47.
Nd6 {[%clk 0:00:02.8]} 47... Bc6+ {[%clk 0:00:50.5]} 0-1

[Event "*** SCC Grand Prix: Titled Tuesday Blitz"]
[Site "Chess.com"]
[Date "2020.08.25"]
[Round "3"]
[White "tsvet2005"]
[Black "Nemsko"]
[Result "1-0"]
[WhiteElo "2578"]
[BlackElo "2380"]
[TimeControl "180+1"]
[EndTime "10:30:16 PDT"]
[Termination "tsvet2005 won on time"]

1. d4 {[%clk 0:03:00.9]} 1... Nf6 {[%clk 0:02:59.7]} 2. c4 {[%clk 0:03:01]} 2...
e6 {[%clk 0:02:59.1]} 3. Nc3 {[%clk 0:03:00.9]} 3... Bb4 {[%clk 0:02:57.7]} 4.
f3 {[%clk 0:03:01.2]} 4... d5 {[%clk 0:02:50.1]} 5. a3 {[%clk 0:03:00.4]} 5...
Bxc3+ {[%clk 0:02:48.8]} 6. bxc3 {[%clk 0:03:01.3]} 6... O-O {[%clk 0:02:48.1]}
7. cxd5 {[%clk 0:03:01.8]} 7... Nxd5 {[%clk 0:02:46.3]} 8. e4 {[%clk 0:03:02]}
8... Ne7 {[%clk 0:02:46.9]} 9. Be3 {[%clk 0:03:00.8]} 9... c5 {[%clk 0:02:44.4]}
10. Bd3 {[%clk 0:02:55.9]} 10... Qa5 {[%clk 0:02:42.1]} 11. Qd2 {[%clk
0:02:53.9]} 11... Na6 {[%clk 0:02:35.9]} 12. Ne2 {[%clk 0:02:53.3]} 12... Nc6
{[%clk 0:02:23.9]} 13. O-O {[%clk 0:02:43.9]} 13... Rd8 {[%clk 0:02:12.7]} 14.
Qb2 {[%clk 0:02:40.3]} 14... Rb8 {[%clk 0:02:01.5]} 15. Rfd1 {[%clk 0:02:35.8]}
15... Bd7 {[%clk 0:01:49.7]} 16. Nf4 {[%clk 0:02:29.5]} 16... Be8 {[%clk
0:01:41.7]} 17. Be2 {[%clk 0:02:22.3]} 17... b5 {[%clk 0:01:21.1]} 18. d5 {[%clk
0:02:06.6]} 18... exd5 {[%clk 0:01:18.9]} 19. Nxd5 {[%clk 0:02:07.5]} 19... Ne5
{[%clk 0:01:05.6]} 20. Bf4 {[%clk 0:02:06.3]} 20... f6 {[%clk 0:01:05.1]} 21.
Rd2 {[%clk 0:01:42.3]} 21... Kh8 {[%clk 0:00:58.8]} 22. Rad1 {[%clk 0:01:40.9]}
22... Ra8 {[%clk 0:00:48.3]} 23. h4 {[%clk 0:01:17.9]} 23... c4 {[%clk
0:00:33.8]} 24. Qc1 {[%clk 0:01:02.9]} 24... Nc7 {[%clk 0:00:20.7]} 25. Nxf6
{[%clk 0:00:43.3]} 25... Rxd2 {[%clk 0:00:19.4]} 26. Qxd2 {[%clk 0:00:44.2]}
26... gxf6 {[%clk 0:00:19.1]} 27. Qd6 {[%clk 0:00:44.7]} 27... Nd7 {[%clk
0:00:13.7]} 28. Qxc7 {[%clk 0:00:37.2]} 28... Qxc7 {[%clk 0:00:13.8]} 29. Bxc7
{[%clk 0:00:38.1]} 29... Rc8 {[%clk 0:00:13.6]} 30. Bf4 {[%clk 0:00:36.5]} 30...
Nc5 {[%clk 0:00:11.2]} 31. e5 {[%clk 0:00:36.2]} 31... Ne6 {[%clk 0:00:08.2]}
32. Bg3 {[%clk 0:00:34.1]} 32... f5 {[%clk 0:00:08.8]} 33. f4 {[%clk 0:00:33.7]}
33... Bc6 {[%clk 0:00:06.5]} 34. Kf2 {[%clk 0:00:30.3]} 34... Nc5 {[%clk
0:00:06.4]} 35. Bf3 {[%clk 0:00:24.6]} 35... Nd3+ {[%clk 0:00:05.1]} 36. Ke2
{[%clk 0:00:23.7]} 36... Bxf3+ {[%clk 0:00:03]} 37. Kxf3 {[%clk 0:00:24.6]}
37... Kg7 {[%clk 0:00:02.3]} 38. h5 {[%clk 0:00:24.2]} 38... Kf7 {[%clk
0:00:01.8]} 39. Bh4 {[%clk 0:00:24.4]} 39... Ke6 {[%clk 0:00:02]} 40. g4 {[%clk
0:00:22]} 1-0